bitfinex-derivatives/quotes_ETHF0:USTF0_20250612
["timestamp","ask_amount","ask_price","bid_price","bid_amount"]
[1749772313561,3.9618,2651.5,2651.4,6.102]
[1749772314150,5.09285,2651.5,2651.2,6.103]
[1749772314657,0.7541,2651.2,2651.1,0.75409]
[1749772315658,0.75406,2651.3,2651.2,0.75405]
[1749772316662,3.2078,2651.5,2651.0,1.8467]
[1749772316859,0.7541,2651.1,2651.0,2.6008]
[1749772317955,0.7541,2651.1,2651.0,1.8467]
[1749772318458,0.7541,2651.1,2651.0,2.60083]
[1749772318657,0.7541,2651.1,2651.0,1.8467]
[1749772319058,0.75413,2651.0,2650.9,0.6497]
[1749772319955,0.75413,2651.0,2650.9,1.9142]
[1749772320150,0.75416,2650.9,2650.8,6.103]
[1749772320354,0.75414,2651.1,2651.0,0.75411]
[1749772320560,0.75413,2651.0,2650.9,1.2645]
[1749772320957,0.75413,2651.0,2650.9,2.01866]
[1749772321156,1.20673,2651.0,2650.9,2.01866]
[1749772321357,1.20673,2651.0,2650.9,1.2645]
[1749772321764,1.20673,2651.0,2650.9,2.01866]
[1749772322059,1.20673,2651.0,2650.9,1.2645]
[1749772323061,1.20673,2651.0,2650.9,2.01866]
[1749772323062,0.4526,2651.0,2650.9,2.01866]
[1749772323355,0.4526,2651.0,2650.9,5.22646]
[1749772324058,0.75422,2650.7,2650.6,33.48734]
[1749772324277,0.75422,2650.7,2650.6,33.48735]
[1749772324562,0.75422,2650.7,2650.6,34.0255]
[1749772325160,0.75422,2650.7,2650.6,34.77975]
[1749772326161,0.75421,2650.8,2650.7,0.75419]
[1749772326762,0.00565323,2650.9,2650.8,0.75419]
[1749772326962,0.75981323,2650.9,2650.8,0.75419]
[1749772327160,0.75422,2650.7,2650.6,9.3118]
[1749772327363,0.75425,2650.6,2650.5,0.75426]
[1749772327858,0.7543,2650.5,2650.4,0.75428]
[1749772328972,0.7543,2650.4,2650.3,6.85931]
[1749772329167,0.7543,2650.4,2650.3,6.105]
[1749772330061,0.7543,2650.4,2650.3,6.85933]
[1749772330358,0.7543,2650.4,2650.3,6.105]
[1749772331570,3.96205,2650.6,2650.5,0.75427]
[1749772331759,3.2078,2650.6,2650.5,0.75427]
[1749772331961,0.00565323,2650.9,2650.8,0.75419]
[1749772332266,0.00565323,2650.9,2650.8,6.85919]
[1749772332559,0.75981323,2650.9,2650.8,10.06699]
[1749772332758,0.75422,2650.8,2650.7,0.75419]
[1749772332963,0.00565323,2650.9,2650.8,0.75419]
[1749772333360,0.00565323,2650.9,2650.8,3.96199]
[1749772333762,0.7544,2651.1,2651.0,0.75413]
[1749772333966,0.7544,2651.1,2651.0,24.05313]
[1749772334764,1.5085,2651.1,2651.0,24.05313]
[1749772335079,0.7544,2651.1,2651.0,24.05313]
[1749772336865,1.207,2651.1,2651.0,24.05313]
[1749772337463,0.4526,2651.1,2651.0,24.05313]
[1749772337664,0.4526,2651.1,2651.0,27.02988088]
[1749772338660,0.4526,2651.1,2651.0,24.05313]
[1749772340775,0.4526,2651.1,2651.0,27.76786868]
[1749772341171,0.4526,2651.1,2651.0,0.75413]
[1749772341471,0.4526,2651.1,2651.0,24.04013]
[1749772346378,0.4526,2651.1,2651.0,25.36323]
[1749772347475,0.4526,2651.1,2651.0,29.07796868]
[1749772347871,3.2078,2651.8,2651.0,29.07796868]
[1749772347872,0.75397,2651.7,2651.2,1.88517]
[1749772348177,0.75397,2651.7,2651.6,0.75394]
[1749772349078,0.00565323,2651.9,2651.8,0.75391]
[1749772349274,0.00565323,2651.9,2651.8,9.8501453]
[1749772349471,0.00565323,2651.9,2651.8,3.7411453]
[1749772349674,0.75953323,2651.9,2651.8,29.393]
[1749772350178,1.36103323,2651.9,2651.8,30.14691]
[1749772354282,0.00565323,2651.9,2651.8,30.14691]
[1749772354482,0.00565323,2651.9,2651.8,31.35011]
[1749772355479,0.75377,2652.3,2652.2,0.7538]
[1749772355682,0.75377,2652.3,2652.2,30.1438]
[1749772358084,0.75377,2652.3,2652.2,29.39]
[1749772358477,0.75377,2652.3,2652.2,30.1438]
[1749772358680,0.75377,2652.3,2652.2,29.39]
[1749772358876,0.75377,2652.3,2652.2,30.1438]
[1749772359579,0.75377,2652.3,2652.2,29.39]
[1749772360279,0.75377,2652.3,2652.2,30.1438]
[1749772360882,0.75377,2652.3,2652.2,29.39]
[1749772361882,0.75377,2652.3,2652.2,30.1438]
[1749772362981,0.75377,2652.3,2652.2,29.39]
[1749772363180,0.75377,2652.3,2652.2,30.1438]
[1749772363485,0.75377,2652.3,2652.2,29.39]
[1749772363683,0.75377,2652.3,2652.2,30.1438]
[1749772365490,0.75377,2652.3,2652.2,29.39]
[1749772365987,0.75377,2652.3,2652.2,30.1398]
[1749772366190,0.75377,2652.3,2652.2,29.386]
[1749772366390,0.75377,2652.3,2652.2,30.1398]
[1749772372791,0.75377,2652.3,2652.2,29.386]
[1749772373586,0.75377,2652.3,2652.2,30.1398]
[1749772374295,0.75377,2652.3,2652.2,29.386]
[1749772374497,0.75377,2652.3,2652.2,30.1398]
[1749772375391,5.71194323,2652.5,2652.1,2.9872353]
[1749772375392,0.7538,2652.2,2652.1,2.9872353]
[1749772375695,0.7538,2652.2,2652.1,3.7410653]
[1749772375889,3.9616,2652.2,2652.1,4.2183353]
[1749772376297,3.9616,2652.2,2652.1,4.9721653]
[1749772376492,0.7538,2652.2,2652.1,4.9721653]
[1749772376696,0.7538,2652.2,2652.1,5.6345653]
[1749772376999,0.7538,2652.3,2652.2,0.75377]
[1749772377198,0.7538,2652.3,2652.2,27.02177961]
[1749772377500,3.9616,2652.3,2652.2,2.99400961]
[1749772378396,0.7538,2652.3,2652.2,2.99400961]
[1749772378795,3.2078,2652.4,2652.0,2.99400961]
[1749772378796,5.09219,2652.4,2652.0,2.99400961]
[1749772379005,0.75383,2652.1,2652.0,26.26700961]
[1749772379501,0.75385,2652.0,2651.9,26.26700961]
[1749772379695,0.75385,2652.0,2651.9,2.99400961]
[1749772379890,0.75388,2651.9,2651.8,34.97821961]
[1749772380801,0.75388,2651.9,2651.8,31.98421]
[1749772380999,0.75388,2651.9,2651.8,34.98336018]
[1749772381303,0.75388,2651.9,2651.8,31.98421]
[1749772381501,0.75388,2651.9,2651.8,34.98291373]
[1749772382207,0.75388,2651.9,2651.8,29.373]
[1749772382208,3.96168,2651.9,2651.8,29.373]
[1749772382500,0.75391,2651.8,2651.7,2.99870373]
[1749772382704,0.75391,2651.8,2651.7,26.27170373]
[1749772383203,0.75391,2651.8,2651.7,27.02564373]
[1749772383399,0.75391,2651.8,2651.7,26.27170373]
[1749772383603,0.75391,2651.8,2651.7,27.02564373]
[1749772384103,0.75391,2651.8,2651.7,26.27170373]
[1749772385006,0.75391,2651.8,2651.7,27.02564373]
[1749772386600,3.2078,2651.9,2651.8,0.75391]
[1749772386807,0.75388,2651.9,2651.8,2.07291]
[1749772387102,0.75388,2651.9,2651.8,5.70131373]
[1749772387301,0.75388,2651.9,2651.8,25.2217]
[1749772387509,0.75388,2651.9,2651.8,25.97561]
[1749772387707,0.75391,2651.8,2651.7,2.99870373]
[1749772387914,0.75394,2651.7,2651.6,27.65535373]
[1749772388109,0.75394,2651.7,2651.6,4.38235373]
[1749772388309,0.75394,2651.7,2651.6,24.02697]
[1749772389805,0.75394,2651.7,2651.6,0.75397]
[1749772395215,0.75397,2651.6,2651.5,34.43218373]
[1749772395413,0.75397,2651.6,2651.5,30.6795]
[1749772395612,0.75397,2651.6,2651.5,7.4065]
[1749772395914,0.75397,2651.6,2651.5,30.6795]
[1749772396111,0.75397,2651.6,2651.3,3.75273373]
[1749772396312,3.2078,2651.4,2649.9,0.75444]
[1749772396516,3.2078,2650.1,2650.0,1.2731]
[1749772396913,3.2078,2650.1,2650.0,2.02752]
[1749772398111,3.96219,2650.1,2650.0,1.2731]
[1749772398314,3.96219,2650.1,2650.0,24.6571]
[1749772398718,3.96219,2650.1,2650.0,25.41152]
[1749772398918,3.2078,2650.1,2650.0,25.41152]
[1749772399519,3.96219,2650.1,2650.0,1.2731]
[1749772399722,3.96219,2650.1,2650.0,24.6401]
[1749772400421,3.96219,2650.1,2650.0,1.2731]
[1749772400616,3.96219,2650.1,2650.0,24.6381]
[1749772402422,3.2078,2650.1,2650.0,2.02752]
[1749772402721,3.96219,2650.1,2650.0,2.02752]
[1749772402915,3.96219,2650.1,2650.0,1.2731]
[1749772404317,0.75445,2649.9,2649.8,0.00565323]
[1749772405119,1.88643,2649.5,2649.0,0.75468]
[1749772405316,0.75465,2649.2,2649.1,1.2653]
[1749772405512,3.2078,2649.2,2649.1,2.01998]
[1749772405718,3.96245,2649.2,2649.1,2.01998]
[1749772406023,3.96245,2649.2,2649.1,1.2653]
[1749772406719,3.96245,2649.2,2649.1,2.01998]
[1749772407420,2.49064,2650.2,2649.5,0.75454]
[1749772407621,0.75451,2649.7,2649.6,1.2248]
[1749772407821,3.96231,2649.7,2649.6,1.2248]
[1749772408218,0.75467,2649.2,2649.0,23.375]
[1749772408420,0.75467,2649.2,2649.1,0.75466]
[1749772409525,0.75467,2649.2,2649.1,2.00416]
[1749772412222,3.2078,2649.4,2649.3,0.75462]
[1749772412430,0.75457,2649.6,2649.5,0.75454]
[1749772412631,0.7546,2649.5,2649.4,0.75458]
[1749772413322,0.75456,2649.6,2649.5,0.75453]
[1749772413927,0.7546,2649.5,2649.4,0.75457]
[1749772414632,0.7546,2649.5,2649.4,1.36497]
[1749772415429,0.7546,2649.5,2649.4,0.6104]
[1749772415825,0.7546,2649.5,2649.4,1.36499]
[1749772416227,1.8863,2649.7,2649.6,0.7545]
[1749772416228,0.75454,2649.7,2649.6,0.7545]
[1749772416828,0.75454,2649.6,2649.5,2.71845]
[1749772417029,0.75454,2649.6,2649.5,1.9639]
[1749772417229,0.75454,2649.6,2649.5,2.71847]
[1749772423138,0.75454,2649.6,2649.5,2.71846]
[1749772423437,0.75454,2649.6,2649.5,1.9639]
[1749772423639,1.88644,2649.5,2649.0,25.18175]
[1749772423835,0.75466,2649.3,2649.2,1.35771]
[1749772424241,0.75462,2649.4,2649.3,0.75457]
[1749772424442,0.75462,2649.4,2649.3,1.99667]
[1749772424639,0.6167,2649.7,2649.3,3.12865]
[1749772424839,0.75454,2649.7,2649.6,0.75454]
[1749772425844,0.75454,2649.7,2649.4,0.75456]
[1749772425845,0.75459,2649.5,2649.4,0.75456]
[1749772426342,3.9625,2649.8,2649.7,0.75451]
[1749772427137,3.9625,2649.8,2649.7,2.04521]
[1749772427444,0.7547,2649.8,2649.7,2.04521]
[1749772427741,0.7547,2649.8,2649.7,8.15821]
[1749772432946,1.2075,2649.8,2649.7,8.15821]
[1749772433344,0.00565323,2650.3,2650.1,0.75437]
[1749772433539,0.75999323,2650.3,2650.2,2.68927]
[1749772433739,0.75999323,2650.3,2650.2,3.32697]
[1749772434339,0.00565323,2650.3,2650.2,3.32697]
[1749772435250,0.75999323,2650.3,2650.2,2.5726]
[1749772435448,0.75999323,2650.3,2650.2,3.32697]
[1749772436455,0.00565323,2650.3,2650.2,3.32697]
[1749772437041,0.75999323,2650.3,2650.2,3.32697]
[1749772439046,0.75445,2650.0,2649.9,6.111]
[1749772439247,0.75445,2650.0,2649.9,29.401]
[1749772439456,0.75445,2650.0,2649.9,30.6599]
[1749772440647,0.75445,2650.0,2649.9,29.401]
[1749772441452,0.75445,2650.0,2649.9,6.111]
[1749772441850,0.75445,2649.9,2649.8,0.6535]
[1749772442050,0.75445,2649.9,2649.8,2.62765]
[1749772443060,0.75445,2649.9,2649.8,1.8732]
[1749772443946,1.88618,2649.9,2649.4,6.93977909]
[1749772444148,0.75456,2649.5,2649.4,4.57656]
[1749772447256,0.642,2649.7,2649.4,4.57656]
[1749772447257,0.75456,2649.6,2649.5,0.75454]
[1749772447451,0.75456,2649.5,2649.4,3.2078]
[1749772447656,0.75462,2649.3,2649.2,1.2461]
[1749772448052,0.75471,2649.0,2648.9,0.00565323]
[1749772450461,5.75471,2649.0,2648.9,0.00565323]
[1749772450854,7.43481,2649.0,2648.9,0.00565323]
[1749772451367,0.75491,2648.3,2648.2,3.2078]
[1749772451557,3.2078,2648.4,2647.9,1.88756]
[1749772451857,0.75483,2648.6,2647.9,1.88756]
[1749772451858,0.75495,2648.2,2648.1,0.75496]
[1749772452156,3.2078,2648.4,2647.9,1.8036]
[1749772452356,3.21346412,2648.4,2647.9,1.8036]
[1749772452563,0.75498,2648.1,2648.0,0.75498]
[1749772452763,0.75498,2648.1,2648.0,2.00288]
[1749772452966,0.75498,2648.1,2648.0,1.2479]
[1749772453160,0.75504,2647.9,2647.8,0.75504]
[1749772453361,5.0951,2648.3,2647.6,3.2078]
[1749772453362,1.88742,2648.1,2647.6,3.2078]
[1749772453561,0.75508,2647.7,2647.6,3.9629]
[1749772454053,0.75506,2647.8,2647.7,0.75507]
[1749772454256,0.75506,2647.8,2647.6,3.2078]
[1749772454466,0.75504,2647.9,2647.7,0.75508]
[1749772455162,0.6575,2648.1,2647.6,3.2078]
[1749772455365,0.75502,2648.0,2647.7,1.2873]
[1749772455763,0.6575,2648.1,2647.7,1.2873]
[1749772455964,0.75504,2647.9,2647.8,0.75505]
[1749772456166,0.75505,2647.8,2647.7,2.04236]
[1749772456564,0.75505,2647.8,2647.7,1.2873]
[1749772456759,0.75507,2647.8,2647.7,0.75508]
[1749772457165,0.75507,2647.8,2647.7,2.04238]
[1749772457861,0.75508,2647.7,2647.6,3.2078]
[1749772458056,1.88756,2647.9,2647.5,0.75513]
[1749772458261,0.75513,2647.6,2647.5,0.75513]
[1749772458965,0.7551,2647.7,2647.6,0.75509]
[1749772459358,0.75513,2647.6,2647.5,0.75512]
[1749772459659,0.75512,2647.6,2647.5,0.75511]
[1749772459968,0.75511,2647.6,2647.3,9.23057]
[1749772460267,0.75511,2647.6,2647.5,0.75514]
[1749772460458,3.2078,2648.0,2647.7,0.75506]
[1749772460658,3.2078,2648.0,2647.8,0.75504]
[1749772460865,0.75515,2647.5,2647.4,0.75513]
[1749772461067,0.75511,2647.6,2647.5,0.7551]
[1749772462565,0.75509,2647.7,2647.6,0.75507]
[1749772462964,0.75511,2647.7,2647.6,0.75508]
[1749772463361,3.2078,2648.0,2647.6,0.75508]
[1749772463362,3.21346412,2648.4,2647.6,1.88774]
[1749772463567,0.75497,2648.2,2648.1,0.75495]
[1749772463766,1.8873,2648.3,2647.8,0.6645]
[1749772463969,0.75498,2648.1,2648.0,0.75496]
[1749772464467,1.8873,2648.3,2647.9,1.9944]
[1749772464468,0.75499,2648.0,2647.9,1.9944]
[1749772465174,3.86596412,2648.4,2647.9,1.9944]
[1749772465175,0.75498,2648.1,2648.0,0.75496]
[1749772465368,0.75496,2648.2,2648.1,0.75494]
[1749772467372,0.75502,2647.9,2647.8,7.52653]
[1749772468273,0.75502,2647.9,2647.8,6.7715]
[1749772468774,0.75502,2647.9,2647.8,7.52655]
[1749772468964,0.75502,2648.0,2647.9,0.755]
[1749772469164,0.75502,2648.0,2647.9,2.0235]
[1749772469364,0.75499,2648.1,2648.0,0.75497]
[1749772469877,5.09508,2648.3,2648.1,0.75494]
[1749772469878,0.75496,2648.2,2648.1,0.75494]
[1749772470370,0.75499,2648.1,2648.0,0.75497]
[1749772471576,0.75499,2648.0,2647.9,2.02351]
[1749772473881,0.75499,2648.0,2647.9,1.2685]
[1749772474684,5.09517,2648.2,2647.8,3.8723]
[1749772474685,0.75502,2647.9,2647.8,3.8723]
[1749772474884,0.75502,2647.9,2647.8,3.2078]
[1749772475182,0.75508,2647.7,2647.6,1.39099]
[1749772476486,0.75508,2647.7,2647.6,0.6359]
[1749772478388,0.75513,2647.5,2647.4,3.96295]
[1749772481989,3.2078,2647.9,2647.4,3.2078]
[1749772482191,0.7551,2647.7,2647.6,0.75507]
[1749772482392,0.75505,2647.8,2647.7,0.75505]
[1749772483096,3.21346412,2648.4,2647.8,1.88763]
[1749772483394,0.75499,2648.0,2647.9,2.5895]
[1749772484191,0.75499,2648.0,2647.9,8.6965]
[1749772484590,0.00566412,2648.4,2648.3,0.75491]
[1749772484790,0.76054412,2648.4,2648.3,0.75491]
[1749772484993,0.00566412,2648.4,2648.3,0.75491]
[1749772485297,0.00566412,2648.4,2648.3,6.86191]
[1749772485500,0.76054412,2648.4,2648.3,6.86191]
[1749772486093,0.76054412,2648.4,2648.3,6.107]
[1749772486298,0.76054412,2648.4,2648.3,6.86191]
[1749772486492,0.76054412,2648.4,2648.3,10.06971]
[1749772487496,0.00566412,2648.4,2648.3,10.06971]
[1749772488397,0.76054412,2648.4,2648.3,10.06971]
[1749772488592,0.76054412,2648.4,2648.3,9.3148]
[1749772488996,0.76054412,2648.4,2648.3,10.6042]
[1749772489294,0.76054412,2648.4,2648.3,7.3964]
[1749772489506,0.75496,2648.1,2648.0,29.412]
[1749772489697,0.75496,2648.1,2648.0,30.16699]
[1749772489998,0.75496,2648.1,2648.0,6.106]
[1749772490599,0.75496,2648.1,2648.0,6.86099]
[1749772490899,0.75496,2648.1,2648.0,7.3954]
[1749772491696,0.75496,2648.1,2648.0,8.15039]
[1749772493302,0.75495,2648.2,2648.1,0.75494]
[1749772493504,0.00566412,2648.4,2648.0,7.3954]
[1749772493706,0.00566412,2648.4,2648.3,3.96271]
[1749772494405,0.00566412,2648.4,2648.3,5.24921]
[1749772495103,0.00566412,2648.4,2648.3,8.98118909]
[1749772495301,0.00566412,2648.4,2648.3,5.24921]
[1749772495504,0.76054412,2648.4,2648.3,8.98118909]
[1749772495700,0.00566412,2648.4,2648.3,8.98118909]
[1749772495900,0.00566412,2648.4,2648.3,5.24921]
[1749772496299,0.76054412,2648.4,2648.3,5.24921]
[1749772497506,0.00566412,2648.4,2648.3,5.24921]
[1749772498108,0.76054412,2648.4,2648.3,5.24921]
[1749772498303,0.00566412,2648.4,2648.3,5.24921]
[1749772499108,0.4109,2648.9,2648.3,4.4943]
[1749772499306,0.75478,2648.8,2648.7,0.75477]
[1749772499495,3.2078,2649.0,2648.5,2.56664]
[1749772499496,0.75483,2648.6,2648.5,2.56664]
[1749772499701,0.75483,2648.6,2648.5,25.1138]
[1749772499900,0.75488,2648.4,2648.3,32.6158]
[1749772500102,0.75488,2648.4,2648.3,6.106]
[1749772500811,0.75494,2648.2,2648.1,0.00566412]
[1749772501001,3.96274,2648.2,2648.1,0.00566412]
[1749772501310,3.96274,2648.2,2648.1,4.12e-06]
[1749772501607,4.98024,2648.2,2648.1,4.12e-06]
[1749772504708,11.08624,2648.2,2648.1,4.12e-06]
[1749772505409,3.96274,2648.2,2648.1,4.12e-06]
[1749772506212,3.96274,2648.2,2648.1,1.25820412]
[1749772508101,3.2078,2648.2,2648.1,1.25820412]
[1749772508306,3.96274,2648.2,2648.1,1.25820412]
[1749772508812,0.75494,2648.2,2648.1,1.25820412]
[1749772510112,0.75494,2648.2,2648.1,2.01315412]
[1749772510312,0.75494,2648.2,2648.1,1.25820412]
[1749772511207,0.75494,2648.2,2648.1,4.12e-06]
[1749772511813,0.75494,2648.2,2648.1,1.22530412]
[1749772516625,0.75494,2648.2,2648.1,1.98026412]
[1749772517120,0.75494,2648.2,2648.1,1.22530412]
[1749772519320,0.75494,2648.2,2648.1,1.98026412]
[1749772520218,1.20804,2648.2,2648.1,1.98026412]
[1749772521122,0.4531,2648.2,2648.1,1.98026412]
[1749772521323,1.20804,2648.2,2648.1,1.98026412]
[1749772522816,1.20804,2648.2,2648.1,1.22530412]
[1749772523023,1.20804,2648.2,2648.1,1.98026412]
[1749772523721,1.20804,2648.2,2648.1,1.22530412]
[1749772523921,1.20804,2648.2,2648.1,1.98026412]
[1749772524617,1.20804,2648.2,2648.1,1.22530412]
[1749772525522,1.20804,2648.2,2648.1,1.98026412]
[1749772525716,1.20804,2648.2,2648.1,1.22530412]
[1749772526220,1.20804,2648.2,2648.1,1.98026412]
[1749772526823,0.4531,2648.2,2648.1,1.98026412]
[1749772527021,3.21346412,2648.6,2648.5,0.75485]
[1749772527516,3.21346412,2648.6,2648.5,30.15885]
[1749772527817,3.2078,2649.0,2648.6,1.88704]
[1749772528127,3.2078,2649.0,2648.5,31.43095]
[1749772528128,3.96251,2649.0,2648.9,0.75474]
[1749772528418,3.96251,2649.0,2648.9,6.85874]
[1749772528620,0.75471,2649.0,2648.9,6.104]
[1749772528824,0.75471,2649.0,2648.9,6.85874]
[1749772529123,0.75471,2649.0,2648.9,8.07274]
[1749772530126,0.75471,2649.0,2648.9,1.96874]
[1749772530424,0.75471,2649.0,2648.9,8.07274]
[1749772535233,1.5096,2649.1,2649.0,0.75471]
[1749772535526,1.50958,2649.1,2649.0,1.2021]
[1749772536327,1.50958,2649.1,2649.0,1.95681]
[1749772537327,1.50958,2649.1,2649.0,1.2021]
[1749772537931,1.50958,2649.1,2649.0,1.95681]
[1749772538130,1.50958,2649.1,2649.0,24.4951]
[1749772539425,1.50958,2649.1,2649.0,25.24981]
[1749772540433,1.50958,2649.1,2649.0,24.4951]
[1749772540732,1.50958,2649.1,2649.0,25.24981]
[1749772541035,1.50958,2649.1,2649.0,1.95681]
[1749772541237,1.50958,2649.1,2649.0,24.4931]
[1749772541937,1.50958,2649.1,2649.0,25.24781]
[1749772542335,1.50958,2649.1,2649.0,24.4931]
[1749772542532,1.50958,2649.1,2649.0,25.24781]
[1749772542734,1.50958,2649.1,2649.0,24.4931]
[1749772543736,1.50958,2649.1,2649.0,24.4921]
[1749772544733,0.75468,2649.1,2649.0,24.4921]
[1749772545139,0.75468,2649.1,2649.0,1.2021]
[1749772545340,0.75468,2649.1,2649.0,25.24681]
[1749772545536,0.75468,2649.1,2649.0,24.4921]
[1749772546138,0.75468,2649.1,2649.0,25.24681]
[1749772547235,0.75468,2649.1,2649.0,24.4921]
[1749772548437,0.75468,2649.1,2649.0,25.24681]
[1749772548736,0.75468,2649.1,2649.0,1.2021]
[1749772548942,0.75468,2649.1,2649.0,24.4901]
[1749772549637,0.75468,2649.1,2649.0,25.24481]
[1749772550338,0.75468,2649.1,2649.0,1.95681]
[1749772550539,0.75468,2649.1,2649.0,25.24481]
[1749772550744,0.75468,2649.1,2649.0,1.95681]
[1749772551044,0.75468,2649.1,2649.0,25.24481]
[1749772551743,0.75468,2649.1,2649.0,1.95681]
[1749772551944,0.75468,2649.1,2649.0,25.24381]
[1749772555248,0.75468,2649.1,2649.0,24.4891]
[1749772555745,0.75468,2649.1,2649.0,1.2021]
[1749772555942,0.75468,2649.1,2649.0,30.5861]
[1749772556544,0.75468,2649.1,2648.5,1.88706]
[1749772556545,0.75482,2648.6,2648.5,23.286]
[1749772556740,0.75488,2648.4,2648.3,3.73197909]
[1749772556945,0.75491,2648.3,2648.2,29.383]
[1749772557347,0.75491,2648.3,2648.2,6.098]
[1749772557850,0.75494,2648.2,2648.1,25.22170412]
[1749772558751,0.75494,2648.2,2648.1,25.97666412]
[1749772558949,0.75494,2648.2,2648.1,2.69166412]
[1749772559244,3.8353,2648.5,2648.2,0.7549]
[1749772559443,1.88693,2648.8,2648.4,3.2078]
[1749772559444,3.2078,2648.8,2648.4,3.2078]
[1749772559642,3.2078,2648.8,2648.6,0.7548]
[1749772559847,3.96256,2648.8,2648.7,2.05439]
[1749772560250,3.96256,2648.8,2648.7,2.71409]
[1749772560451,0.75476,2648.8,2648.7,2.71409]
[1749772560853,0.75476,2648.8,2648.7,1.9593]
[1749772561352,0.75482,2648.6,2648.5,0.638]
[1749772561551,0.75482,2648.6,2648.5,31.3529]
[1749772564258,0.75491,2648.3,2648.2,6.099]
[1749772564452,0.75491,2648.3,2648.2,30.7139]
[1749772564755,3.9628,2648.7,2648.2,32.60122]
[1749772565053,4.71763,2648.7,2648.6,0.75482]
[1749772565258,4.71763,2648.7,2648.6,24.04082]
[1749772565452,4.71763,2648.7,2648.6,23.286]
[1749772567154,4.71763,2648.7,2648.6,24.04082]
[1749772567356,0.755,2648.7,2648.6,30.80272]
[1749772567556,0.00566412,2649.2,2649.1,0.75468]
[1749772567768,0.00566412,2649.2,2649.1,30.13968]
[1749772567964,0.76031412,2649.2,2649.1,30.13968]
[1749772568367,0.00566412,2649.2,2649.1,30.13968]
[1749772571071,0.75459,2649.5,2649.4,0.75459]
[1749772571270,0.75459,2649.5,2649.4,24.03759]
[1749772573176,1.89196412,2649.7,2649.5,0.75454]
[1749772573177,0.75455,2649.6,2649.5,0.75454]
[1749772573372,0.75455,2649.6,2649.5,2.63184]
[1749772574275,0.75455,2649.6,2649.5,1.8773]
[1749772574472,0.76019412,2649.7,2649.6,0.75454]
[1749772575273,0.75454,2649.6,2649.5,2.63185]
[1749772575579,0.75454,2649.6,2649.5,1.8773]
[1749772576278,0.75454,2649.6,2649.5,2.63187]
[1749772576479,0.76018412,2649.7,2649.6,0.75454]
[1749772576679,0.76017412,2649.7,2649.6,0.75454]
[1749772576978,0.75454,2649.6,2649.5,8.72985]
[1749772577573,0.75454,2649.6,2649.5,7.9753]
[1749772577776,0.75454,2649.6,2649.5,8.72986]
[1749772580881,0.00566412,2649.7,2649.6,0.75454]
[1749772580882,0.76018412,2649.7,2649.6,0.75454]
[1749772581182,0.00566412,2649.7,2649.6,24.03154]
[1749772581374,0.76017412,2649.7,2649.6,24.03154]
[1749772581574,0.76017412,2649.7,2649.6,23.277]
[1749772583284,0.76017412,2649.7,2649.6,24.03154]
[1749772585582,0.76017412,2649.7,2649.6,25.23124]
[1749772586281,0.76017412,2649.7,2649.6,31.32024]
[1749772587583,0.76017412,2649.7,2649.6,30.5657]
[1749772589087,0.76017412,2649.7,2649.6,31.32024]
[1749772590691,0.00566412,2649.7,2649.6,34.52804]
[1749772591291,0.76017412,2649.7,2649.6,34.52804]
[1749772591987,0.00566412,2649.7,2649.6,34.52804]
[1749772596789,0.00566412,2649.7,2649.6,38.26001909]
[1749772596993,0.00566412,2649.7,2649.6,34.52804]
[1749772597691,0.00566412,2649.7,2649.6,38.26001909]
[1749772598785,0.00566412,2649.7,2649.6,34.52804]
[1749772598983,0.00566412,2649.7,2649.6,5.16204]
[1749772599191,0.75454,2649.6,2649.5,5.14412909]
[1749772599392,0.75454,2649.6,2649.5,32.08865]
[1749772600293,0.76018412,2649.7,2649.6,0.75454]
[1749772600494,0.00566412,2649.7,2649.6,5.28084]
[1749772601089,0.00566412,2649.7,2649.6,9.01281909]
[1749772602993,0.4528,2650.1,2650.0,0.75442]
[1749772603192,0.75436,2650.3,2650.2,0.75433]
[1749772603394,0.75436,2650.3,2650.2,24.01933]
[1749772603691,3.2078,2650.3,2650.2,6.092]
[1749772603895,3.96214,2650.3,2650.2,29.356]
[1749772604093,0.75439,2650.1,2650.0,0.00566412]
[1749772604298,0.75439,2650.1,2650.0,29.36166412]
[1749772605493,0.75439,2650.1,2650.0,30.11608412]
[1749772605690,0.75439,2650.1,2650.0,29.36166412]
[1749772606294,0.75439,2650.1,2650.0,0.00566412]
[1749772606898,0.75439,2650.1,2650.0,23.26766412]
[1749772607198,0.75439,2650.1,2650.0,0.00566412]
[1749772608193,6.77009,2650.1,2650.0,0.00566412]
[1749772608398,1.77009,2650.1,2650.0,0.00566412]
[1749772613801,6.77009,2650.1,2650.0,0.00566412]
[1749772614900,0.75439,2650.1,2650.0,0.00566412]
[1749772620606,0.75439,2650.1,2650.0,0.76008412]
[1749772620813,0.75439,2650.1,2650.0,0.00566412]
[1749772621013,0.75439,2650.1,2650.0,1.32726412]
[1749772621703,0.75439,2650.1,2650.0,2.08168412]
[1749772622513,1.20707,2650.2,2650.1,0.75439]
[1749772622709,1.20707,2650.2,2650.1,2.00619]
[1749772622913,1.20707,2650.2,2650.1,2.66279]
[1749772624617,0.4527,2650.2,2650.1,2.66279]
[1749772625407,2.24712824,2651.6,2650.1,13.8862]
[1749772625608,6.20397099,2651.9,2650.1,13.8862]
[1749772625609,0.6608,2652.5,2651.5,3.2078]
[1749772625804,0.6608,2652.5,2650.9,3.73197909]
[1749772625805,3.2078,2652.4,2651.8,3.2078]
[1749772626011,3.2078,2652.4,2652.0,0.75383]
[1749772626214,0.75381,2652.2,2652.0,0.75383]
[1749772626513,0.75381,2652.2,2652.1,1.2525]
[1749772626707,0.75385,2652.0,2651.9,29.451]